bitfinex/quotes_SOLUSD_20250207
["timestamp","ask_amount","ask_price","bid_price","bid_amount"]
[1738959416155,25.61407776,193.78,193.75,30.0]
[1738959416337,25.61407776,193.79,193.73,36.5602]
[1738959416755,25.61407776,193.79,193.73,62.17427776]
[1738959417136,25.61407776,193.8,193.73,62.17427776]
[1738959417442,0.12549,193.84,193.73,36.5602]
[1738959417443,25.61407776,193.79,193.73,36.5602]
[1738959417644,0.12549,193.84,193.73,36.5602]
[1738959417645,25.61407776,193.77,193.73,6.5602]
[1738959418034,3.6113,193.83,193.69,55.61407776]
[1738959418035,25.61407776,193.75,193.69,55.61407776]
[1738959418436,25.61407776,193.75,193.69,30.0]
[1738959418641,25.61407776,193.74,193.69,30.0]
[1738959420037,26.64627776,193.75,193.69,30.0]
[1738959420644,1.0321,193.78,193.73,25.61407776]
[1738959420831,1.0318,193.83,193.77,25.61407776]
[1738959421039,82.3317,193.84,193.76,30.0]
[1738959421332,0.03,193.89,193.82,30.0]
[1738959421535,0.03,193.89,193.84,30.0]
[1738959421736,0.03,193.89,193.87,30.0]
[1738959422642,0.03,193.89,193.88,25.61407776]
[1738959424866,25.64407776,193.89,193.82,30.0]
[1738959425035,0.03,193.89,193.84,30.0]
[1738959425455,0.03,193.89,193.87,30.0]
[1738959426372,0.03,193.89,193.84,312.0]
[1738959426373,0.03,193.89,193.85,30.0]
[1738959426578,25.64407776,193.89,193.83,55.61407776]
[1738959426745,25.61407776,193.85,193.79,40.168126]
[1738959427077,25.61407776,193.84,193.79,14.55404824]
[1738959427237,25.61407776,193.82,193.79,8.03454824]
[1738959427445,13.53733853,193.88,193.79,8.03454824]
[1738959427764,13.53733853,193.88,193.76,55.61407776]
[1738959427765,25.61407776,193.82,193.76,55.61407776]
[1738959428147,25.61407776,193.79,193.75,44.19894824]
[1738959428352,25.61407776,193.8,193.75,14.19894824]
[1738959428683,25.61407776,193.77,193.75,8.03454824]
[1738959429183,25.61407776,193.76,193.75,8.03454824]
[1738959429762,25.61407776,193.76,193.68,0.063]
[1738959430043,25.61407776,193.74,193.68,0.063]
[1738959430252,25.61407776,193.73,193.68,0.063]
[1738959430562,25.61407776,193.69,193.68,0.063]
[1738959432672,25.73956776,193.69,193.68,0.063]
[1738959432840,40.30940629,193.69,193.68,0.063]
[1738959433160,40.18391629,193.69,193.68,0.063]
[1738959433362,26.64657776,193.69,193.68,0.063]
[1738959434164,25.61407776,193.69,193.68,0.063]
[1738959434370,82.3325,193.7,193.68,0.063]
[1738959434371,81.3,193.7,193.68,0.063]
[1738959435386,25.61407776,193.69,193.68,0.063]
[1738959435954,25.61407776,193.73,193.68,0.063]
[1738959436168,25.61407776,193.78,193.72,25.61407776]
[1738959436460,25.61407776,193.77,193.7,25.61407776]
[1738959437054,26.64607776,193.78,193.71,25.61407776]
[1738959437261,0.03,193.75,193.71,25.61407776]
[1738959437467,0.03,193.75,193.7,25.61407776]
[1738959437969,0.03,193.75,193.71,25.61407776]
[1738959438274,0.03,193.75,193.72,55.61407776]
[1738959438451,0.03,193.75,193.74,55.61407776]
[1738959438943,0.03,193.75,193.74,60.90106776]
[1738959439144,0.03,193.75,193.74,69.19912214]
[1738959439766,0.03,193.75,193.74,68.19912214]
[1738959440584,0.03,193.75,193.74,62.01277776]
[1738959440747,0.03,193.75,193.74,62.78677939]
[1738959440952,0.03,193.75,193.74,81.48561792]
[1738959441252,0.03,193.75,193.74,81.61110792]
[1738959441555,0.03,193.75,193.74,393.48561792]
[1738959441755,0.03,193.75,193.74,379.29976776]
[1738959443163,0.03,193.75,193.74,62.01277776]
[1738959443359,0.03,193.75,193.74,36.3987]
[1738959443557,25.64407776,193.75,193.69,37.9783]
[1738959443751,0.03,193.75,193.72,30.0]
[1738959443947,0.03,193.75,193.74,30.0]
[1738959445672,0.03,193.75,193.73,25.61407776]
[1738959445673,25.64407776,193.75,193.69,6.3987]
[1738959445845,25.61407776,193.74,193.69,6.3987]
[1738959446047,25.61407776,193.72,193.68,0.063]
[1738959446262,25.61407776,193.72,193.69,30.0]
[1738959446461,25.61407776,193.73,193.68,0.063]
[1738959448145,1.0622,193.75,193.69,55.61407776]
[1738959448546,0.03,193.75,193.71,30.0]
[1738959448771,25.61407776,193.74,193.68,30.063]
[1738959448957,0.03,193.73,193.7,30.0]
[1738959449675,0.03,193.73,193.72,30.0]
[1738959449870,0.03,193.73,193.72,55.61407776]
[1738959450179,0.03,193.73,193.72,60.90156776]
[1738959451254,0.03,193.73,193.72,74.43890629]
[1738959451449,0.03,193.75,193.74,50.25098]
[1738959451655,25.64407776,193.89,193.81,30.0]
[1738959451846,1.0315,193.88,193.82,25.61407776]
[1738959452280,26.64557776,193.88,193.81,55.61407776]
[1738959452980,1.0315,193.88,193.82,25.61407776]
[1738959453276,26.64557776,193.88,193.82,25.61407776]
[1738959453475,26.64557776,193.88,193.81,55.61407776]
[1738959454081,26.64567776,193.86,193.79,55.61407776]
[1738959454292,25.61407776,193.88,193.81,55.61407776]
[1738959455297,25.61407776,193.86,193.79,55.61407776]
[1738959455466,25.61407776,193.87,193.8,25.61407776]
[1738959455672,26.64557776,193.88,193.82,30.0]
[1738959455877,1.0615,193.89,193.83,25.61407776]
[1738959456073,0.03,193.89,193.84,55.61407776]
[1738959456285,0.03,193.89,193.86,30.0]
[1738959456484,0.03,193.89,193.87,25.61407776]
[1738959456686,0.03,193.89,193.86,55.61407776]
[1738959456999,0.03,193.89,193.86,30.0]
[1738959457290,25.61407776,193.87,193.81,55.61407776]
[1738959457492,25.61407776,193.87,193.83,30.0]
[1738959457661,0.03,193.89,193.86,30.0]
[1738959458383,0.03,193.89,193.86,55.61407776]
[1738959458680,0.03,193.89,193.87,25.61407776]
[1738959458886,0.03,193.89,193.86,55.61407776]
[1738959460166,0.03,193.89,193.88,30.0]
[1738959460388,0.03,193.89,193.88,55.61407776]
[1738959460777,0.03,193.89,193.88,55.73956776]
[1738959461866,0.03,193.89,193.88,55.61407776]
[1738959462594,0.03,193.89,193.88,61.54525894]
[1738959462798,0.03,193.89,193.88,30.0]
[1738959462978,0.03,193.89,193.85,30.0]
[1738959463183,25.61407776,193.9,193.85,30.0]
[1738959463487,0.03,193.95,193.85,30.0]
[1738959463488,25.61407776,193.91,193.85,30.0]
[1738959463674,25.61407776,193.89,193.84,6.5334]
[1738959463876,25.61407776,193.88,193.83,30.0]
[1738959464498,26.64557776,193.88,193.83,30.0]
[1738959464809,25.61407776,193.86,193.79,62.14747776]
[1738959465104,25.61407776,193.85,193.79,36.5334]
[1738959465421,25.61407776,193.86,193.79,62.14747776]
[1738959465766,25.61407776,193.86,193.82,30.0]
[1738959465966,26.64567776,193.87,193.82,30.0]
[1738959466167,25.61407776,193.92,193.86,30.0]
[1738959466404,26.64527776,193.93,193.86,55.61407776]
[1738959466698,26.64527776,193.93,193.86,30.0]
[1738959466877,1.0312,193.93,193.87,25.61407776]
[1738959467201,26.64527776,193.93,193.86,55.61407776]
[1738959467398,81.3,193.94,193.89,30.0]
[1738959467573,82.3312,193.94,193.89,30.0]
[1738959467773,82.3312,193.94,193.89,55.61407776]
[1738959468181,107.94527776,193.94,193.87,25.61407776]
[1738959468378,25.61407776,193.9,193.83,55.61407776]
[1738959468580,25.61407776,193.89,193.83,55.61407776]
[1738959468907,25.61407776,193.87,193.8,55.61407776]
[1738959469495,26.64567776,193.87,193.8,55.61407776]
[1738959469786,26.64567776,193.87,193.78,55.61407776]
[1738959469787,25.61407776,193.85,193.78,55.61407776]
[1738959470180,25.61407776,193.84,193.77,86.87407776]
[1738959470384,25.61407776,193.81,193.77,61.26]
[1738959470584,5.23669,193.87,193.77,61.26]
[1738959470801,1.0316,193.87,193.81,25.61407776]
[1738959471007,1.0316,193.87,193.81,55.61407776]
[1738959471399,1.0316,193.87,193.82,25.61407776]
[1738959471599,1.0315,193.88,193.82,25.61407776]
[1738959471796,26.64557776,193.88,193.81,25.61407776]
[1738959471989,25.61407776,193.87,193.8,25.61407776]
[1738959472184,1.0315,193.88,193.81,30.0]
[1738959472385,26.64557776,193.88,193.81,55.61407776]
[1738959472603,1.0315,193.88,193.81,55.61407776]
[1738959472993,25.61407776,193.84,193.79,0.063]
[1738959473191,25.61407776,193.85,193.79,0.063]
[1738959473395,26.64557776,193.88,193.81,25.61407776]
[1738959473691,25.61407776,193.87,193.8,55.61407776]
[1738959473889,25.61407776,193.87,193.79,0.063]
[1738959473890,0.12549,193.87,193.79,0.063]
[1738959474081,26.64557776,193.88,193.81,30.0]
[1738959474299,1.0315,193.88,193.82,25.61407776]
[1738959474507,1.0615,193.89,193.83,55.61407776]
[1738959475107,1.0615,193.89,193.83,30.0]
[1738959475607,1.0615,193.89,193.85,25.61407776]
[1738959475805,1.0615,193.89,193.83,55.61407776]
[1738959476308,1.0615,193.89,193.84,25.61407776]
[1738959476309,0.03,193.89,193.84,25.61407776]
[1738959476703,0.03,193.89,193.88,25.61407776]
[1738959477995,0.03,193.89,193.87,55.61407776]
[1738959479115,0.03,193.89,193.87,25.61407776]
[1738959479406,25.61407776,193.91,193.85,30.0]
[1738959480313,25.61407776,193.88,193.82,30.0]
[1738959480611,25.61407776,193.87,193.8,63.56377776]
[1738959481195,26.64567776,193.87,193.8,63.56377776]
[1738959481395,26.64557776,193.88,193.82,30.0]
[1738959481908,1.0315,193.88,193.82,30.0]
[1738959482499,26.64547776,193.9,193.84,30.0]
[1738959482700,26.64547776,193.9,193.83,25.61407776]
[1738959482701,25.61407776,193.88,193.81,25.61407776]
[1738959483007,26.64547776,193.9,193.84,30.0]
[1738959483696,25.61407776,193.89,193.82,55.61407776]
[1738959484515,1.0315,193.89,193.84,30.0]
[1738959484701,1.0315,193.89,193.83,25.61407776]
[1738959484897,1.0315,193.89,193.8,63.56377776]
[1738959484898,25.61407776,193.88,193.8,63.56377776]
[1738959485099,25.61407776,193.86,193.8,6.4197]
[1738959485411,25.61407776,193.86,193.82,0.063]
[1738959486421,26.64577776,193.85,193.82,0.063]
[1738959486914,25.61407776,193.84,193.82,0.063]
[1738959487613,25.61407776,193.83,193.82,0.063]
[1738959488209,26.64587776,193.83,193.82,0.063]
[1738959489121,1.0318,193.83,193.82,0.063]
[1738959490922,25.61407776,193.85,193.82,0.063]
[1738959491303,25.61407776,193.84,193.82,0.063]
[1738959491931,82.3318,193.83,193.82,0.063]
[1738959493193,81.3,193.83,193.82,25.67707776]
[1738959493595,81.3,193.83,193.82,0.063]
[1738959493815,26.64587776,193.83,193.82,0.063]
[1738959494022,0.12549,193.82,193.79,0.063]
[1738959494401,25.73956776,193.8,193.79,0.063]
[1738959494719,25.61407776,193.8,193.79,0.063]
[1738959494921,28.16277776,193.83,193.79,0.063]
[1738959495225,25.61407776,193.82,193.79,0.063]
[1738959495538,26.64587776,193.83,193.79,0.063]
[1738959496230,25.61407776,193.88,193.81,25.61407776]
[1738959496515,25.61407776,193.88,193.83,25.61407776]
[1738959496516,1.0315,193.88,193.83,25.61407776]
[1738959496827,1.0315,193.88,193.82,25.61407776]
[1738959497535,0.03,193.92,193.86,25.61407776]
[1738959497824,1.0314,193.91,193.87,25.61407776]
[1738959498029,1.0314,193.91,193.85,25.61407776]
[1738959498219,26.64547776,193.91,193.84,25.61407776]
[1738959498727,26.64547776,193.91,193.8,25.61407776]
[1738959498728,25.61407776,193.87,193.8,25.61407776]
[1738959499032,106.91407776,193.87,193.8,25.61407776]
[1738959499405,81.3,193.87,193.81,25.61407776]
[1738959499920,81.3,193.87,193.86,25.61407776]
[1738959500109,81.3,193.91,193.86,25.61407776]
[1738959500313,81.3,193.91,193.87,25.61407776]
[1738959501011,81.3,193.91,193.89,25.61407776]
[1738959501202,0.03,193.92,193.9,25.61407776]
[1738959501402,0.03,193.92,193.91,55.61407776]
[1738959501936,0.03,193.92,193.89,25.61407776]
[1738959502143,0.03,193.92,193.88,31.99677776]
[1738959502313,25.64407776,193.92,193.85,55.61407776]
[1738959502512,25.61407776,193.88,193.82,32.05017776]
[1738959503203,25.61407776,193.9,193.83,25.61407776]
[1738959503416,106.91407776,193.91,193.84,55.61407776]
[1738959503613,25.61407776,193.9,193.84,30.0]
[1738959504135,26.64547776,193.9,193.84,30.0]
[1738959504512,81.3,193.91,193.87,30.0]
[1738959505441,107.94547776,193.91,193.84,25.61407776]
[1738959505622,107.94547776,193.91,193.85,30.0]
[1738959505835,81.3,193.91,193.87,55.61407776]
[1738959506135,0.03,193.92,193.9,55.61407776]
[1738959507010,0.03,193.92,193.91,25.61407776]
[1738959507211,25.64407776,193.92,193.83,30.0]
[1738959507412,25.61407776,193.9,193.83,55.61407776]
[1738959507745,25.61407776,193.91,193.85,30.0]
[1738959507905,0.03,193.92,193.87,30.0]
[1738959508104,0.03,193.92,193.9,30.0]
[1738959509118,0.03,193.92,193.91,25.61407776]
[1738959509632,0.03,193.92,193.9,55.61407776]
[1738959510036,0.03,193.92,193.87,25.61407776]
[1738959510230,25.64407776,193.92,193.85,25.61407776]
[1738959510535,0.03,193.92,193.88,25.61407776]
[1738959510731,0.03,193.92,193.86,25.61407776]
[1738959511030,0.03,193.92,193.85,30.0]
[1738959511606,0.03,193.92,193.87,30.0]
[1738959512118,0.03,193.92,193.87,55.61407776]
[1738959512317,25.61407776,193.9,193.86,20.0]
[1738959512637,25.61407776,193.9,193.83,55.61407776]
[1738959512837,25.61407776,193.9,193.85,30.0]
[1738959513137,81.33,193.92,193.85,55.61407776]
[1738959513331,81.33,193.92,193.86,25.61407776]
[1738959513639,1.0314,193.91,193.85,55.61407776]
[1738959513840,26.64547776,193.91,193.84,25.61407776]
[1738959514131,25.61407776,193.9,193.83,55.61407776]
[1738959514437,1.0314,193.91,193.85,55.61407776]
[1738959514847,81.3,193.9,193.82,6.4361]
[1738959515022,25.61407776,193.85,193.79,30.063]
[1738959515337,25.61407776,193.83,193.79,0.063]
[1738959515508,25.61407776,193.82,193.79,0.063]
[1738959515708,1.0319,193.81,193.79,0.063]
[1738959516133,25.61407776,193.8,193.79,0.063]
[1738959516528,26.64597776,193.81,193.79,0.063]
[1738959517324,1.0319,193.81,193.79,0.063]
[1738959517529,26.64597776,193.81,193.79,0.063]
[1738959518050,26.64597776,193.81,193.74,57.71908987]
[1738959518051,25.73956776,193.8,193.72,0.063]
[1738959518218,25.61407776,193.77,193.72,0.063]
[1738959518552,25.61407776,193.74,193.72,0.063]
[1738959518739,25.61407776,193.73,193.72,0.063]
[1738959519435,25.61407776,193.73,193.72,0.0001]
[1738959519436,25.73956776,193.73,193.72,0.0001]
[1738959519834,26.77186776,193.73,193.72,0.0001]
[1738959520032,26.64637776,193.73,193.72,0.0001]
[1738959521142,1.0323,193.73,193.72,0.0001]
[1738959521345,25.61407776,193.75,193.72,0.0001]
[1738959522243,1.032,193.78,193.72,25.61417776]
[1738959522454,81.3,193.79,193.73,55.61407776]
[1738959522621,81.3,193.79,193.75,25.61407776]
[1738959522953,81.3,193.79,193.76,25.61407776]
[1738959523241,81.3,193.83,193.77,55.61407776]
[1738959523553,82.3318,193.83,193.77,55.61407776]
[1738959523752,82.3318,193.83,193.78,25.61407776]
[1738959523951,1.0315,193.88,193.82,25.61407776]
[1738959524137,1.0315,193.88,193.84,25.61407776]
[1738959524338,1.0315,193.88,193.83,25.61407776]
[1738959524933,81.3,193.89,193.84,30.0]
[1738959525258,0.03,193.92,193.86,55.61407776]
[1738959525439,26.67537776,193.92,193.85,25.61407776]
[1738959525635,0.03,193.92,193.86,30.0]
[1738959525961,0.03,193.92,193.9,30.0]
[1738959526532,0.03,193.92,193.86,30.0]
[1738959526753,25.61407776,193.9,193.86,30.0]
[1738959527431,25.61407776,193.87,193.81,30.0]
[1738959527633,25.61407776,193.85,193.81,30.0]
[1738959527867,25.61407776,193.82,193.77,6.5936]
[1738959528147,25.61407776,193.83,193.78,30.0]
[1738959528529,26.64577776,193.84,193.78,30.0]
[1738959528943,25.61407776,193.85,193.78,55.61407776]
[1738959529145,25.61407776,193.85,193.8,30.0]
[1738959529737,26.64577776,193.85,193.78,30.0]
[1738959529938,26.64577776,193.85,193.8,30.0]
[1738959531468,26.64577776,193.85,193.77,62.20767776]
[1738959531671,25.61407776,193.86,193.8,30.0]
[1738959531857,25.61407776,193.87,193.8,55.61407776]
[1738959532168,107.94557776,193.89,193.82,55.61407776]
[1738959532540,25.61407776,193.88,193.82,30.0]
[1738959532848,25.61407776,193.88,193.81,25.61407776]
[1738959533050,26.64567776,193.88,193.81,25.61407776]
[1738959533943,26.64567776,193.88,193.83,30.0]
[1738959533944,1.0316,193.88,193.83,30.0]
[1738959534156,107.94557776,193.89,193.83,55.61407776]
[1738959534342,82.3315,193.89,193.83,55.61407776]
[1738959534752,107.94557776,193.89,193.82,25.61407776]
[1738959535049,25.61407776,193.86,193.79,55.61407776]
[1738959535261,25.61407776,193.86,193.81,30.0]
[1738959535566,25.61407776,193.86,193.79,30.77417776]
[1738959535567,25.61407776,193.86,193.79,55.61407776]
[1738959535745,25.61407776,193.85,193.79,30.0]
[1738959535950,25.61407776,193.86,193.79,55.61407776]
[1738959536143,81.3,193.89,193.83,30.0]
[1738959536451,81.3,193.89,193.85,30.0]
[1738959536834,81.3,193.89,193.83,30.0]
[1738959537046,25.61407776,193.88,193.81,55.61407776]
[1738959537239,1.0316,193.86,193.81,30.0]
[1738959538443,1.0316,193.86,193.8,25.61407776]
[1738959538444,81.3,193.88,193.83,55.61407776]
[1738959539060,81.3,193.88,193.84,25.61407776]
[1738959539264,81.3,193.88,193.83,55.61407776]
[1738959539439,82.3315,193.88,193.82,25.61407776]
[1738959540067,25.61407776,193.87,193.81,55.61407776]
[1738959540247,25.61407776,193.84,193.79,30.0]
[1738959540756,25.61407776,193.85,193.79,30.0]
[1738959541353,106.91407776,193.87,193.8,25.61407776]
[1738959541847,106.91407776,193.87,193.82,55.61407776]
[1738959541848,82.3316,193.87,193.82,55.61407776]
[1738959542047,81.3,193.87,193.84,55.61407776]
[1738959542543,81.3,193.87,193.85,25.61407776]
[1738959542742,26.64547776,193.91,193.85,25.61407776]
[1738959543859,25.61407776,193.9,193.84,55.61407776]
[1738959544778,0.03,193.92,193.86,55.61407776]
[1738959544946,0.03,193.92,193.88,55.61407776]
[1738959545287,0.03,193.92,193.89,25.61407776]
[1738959545580,0.03,193.92,193.91,30.0]
[1738959546263,0.03,193.92,193.91,55.61407776]
[1738959547247,0.03,193.92,193.89,30.0]
[1738959547447,25.61407776,193.91,193.87,30.0]
[1738959547646,25.64407776,193.92,193.87,30.0]
[1738959547843,25.61407776,193.91,193.85,30.0]
[1738959548280,25.64407776,193.92,193.88,30.0]
[1738959548575,0.03,193.92,193.88,30.0]
[1738959548763,0.03,193.92,193.88,55.61407776]
[1738959548956,0.03,193.92,193.9,30.0]
[1738959549154,0.03,193.92,193.91,25.61407776]
[1738959550984,0.03,193.92,193.91,46.06370629]
[1738959551187,0.03,193.92,193.91,52.45170629]
[1738959551385,0.03,193.95,193.94,50.25098]
[1738959551673,0.03,193.95,193.94,89.92440541]
[1738959551882,0.03,193.95,193.94,76.38706688]
[1738959552179,0.03,193.95,193.94,55.61407776]
[1738959553073,0.03,193.95,193.94,75.20629223]
[1738959553863,0.03,193.95,193.94,60.77027776]
[1738959554064,0.03,193.95,193.94,55.61407776]
[1738959554271,0.03,193.95,193.94,30.0]
[1738959554465,0.03,193.95,193.94,55.61407776]
[1738959555178,0.03,193.95,193.94,30.0]
[1738959555773,0.03,193.95,193.91,6.388]
[1738959556069,25.64407776,193.95,193.9,30.0]
[1738959557176,1.0312,193.94,193.9,30.0]
[1738959557475,0.03,193.95,193.93,30.0]
[1738959558379,0.03,193.95,193.94,25.61407776]
[1738959558881,0.03,193.95,193.93,30.0]
[1738959559291,0.03,193.95,193.91,55.61407776]
[1738959559781,0.03,193.95,193.92,30.0]
[1738959560080,0.03,193.95,193.92,55.61407776]
[1738959560381,0.03,193.95,193.92,30.0]
[1738959560585,0.03,193.95,193.94,30.0]
[1738959560761,0.03,193.95,193.94,55.61407776]
[1738959561277,0.03,193.95,193.94,30.0]
[1738959561468,0.03,193.95,193.9,30.0]
[1738959561775,25.64407776,193.95,193.9,30.0]
[1738959562479,25.61407776,193.94,193.88,30.0]
[1738959562679,25.61407776,193.94,193.88,55.61407776]
[1738959563075,25.61407776,193.93,193.88,30.0]
[1738959563277,1.0313,193.92,193.88,30.0]
[1738959563464,25.61407776,193.9,193.86,30.0]
[1738959564681,25.61407776,193.91,193.86,30.0]
[1738959564880,25.61407776,193.91,193.84,55.61407776]
[1738959565089,25.61407776,193.9,193.84,30.0]
[1738959565267,25.61407776,193.88,193.83,61.24]
[1738959565478,25.61407776,193.87,193.83,61.24]
[1738959565672,25.61407776,193.86,193.83,61.24]
[1738959565988,25.61407776,193.84,193.83,61.24]
[1738959566364,25.61407776,193.85,193.83,61.24]
[1738959566563,1.0317,193.85,193.83,61.24]
[1738959566878,26.64577776,193.85,193.83,61.24]
[1738959567185,20.0,193.87,193.83,61.24]
[1738959567687,1.0315,193.89,193.88,0.063]
[1738959568066,81.3,193.9,193.88,0.063]
[1738959568473,1.0312,193.93,193.88,25.67707776]
[1738959568992,1.0312,193.93,193.88,0.063]
[1738959569186,26.64527776,193.93,193.88,0.063]
[1738959569489,25.61407776,193.91,193.88,0.063]
[1738959569671,25.61407776,193.92,193.88,0.063]
[1738959570265,46.64527776,193.93,193.88,0.063]
[1738959570506,25.61407776,193.9,193.88,0.063]
[1738959570665,25.61407776,193.92,193.88,0.063]
[1738959570976,1.0313,193.92,193.88,0.063]
[1738959571583,1.0313,193.92,193.88,30.063]
[1738959571980,0.03,193.95,193.92,30.0]
[1738959572281,0.03,193.95,193.94,55.61407776]
[1738959572683,0.03,193.95,193.94,56.38725699]
[1738959573011,0.03,193.95,193.94,55.61407776]
[1738959573192,0.03,193.95,193.94,30.0]
[1738959573580,1.0312,193.94,193.9,30.0]
[1738959574171,25.61407776,193.93,193.88,30.063]
[1738959574696,26.64527776,193.94,193.9,30.0]
[1738959574897,1.0312,193.94,193.9,30.0]
[1738959575068,0.03,193.95,193.92,55.61407776]
[1738959575274,0.03,193.95,193.94,30.0]
[1738959575486,0.03,193.95,193.94,55.61407776]
[1738959575684,0.03,193.95,193.94,69.02592629]
[1738959575886,0.03,193.95,193.94,75.20629704]
[1738959576087,0.03,193.95,193.94,81.76719704]
[1738959577399,0.0001,193.95,193.94,83.76719704]
[1738959577691,0.03,193.98,193.97,66.32772853]
[1738959577896,0.03,193.98,193.97,93.71468508]
[1738959578193,0.03,194.0,193.99,30.25098]
[1738959578497,0.03,194.0,193.99,97.66382361]
[1738959579297,0.03,194.0,193.99,127.66382361]
[1738959579488,0.03,194.0,193.99,126.89098405]
[1738959579674,0.03,194.0,193.99,132.04588405]
[1738959579992,0.0001,194.02,194.01,51.66802853]
[1738959580192,0.03,194.07,194.02,15.66282853]
[1738959580376,0.03,194.07,194.02,40.27690629]
[1738959581272,0.03,194.07,194.02,39.15141629]
[1738959581473,0.03,194.07,194.02,39.02592629]
[1738959581673,25.64407776,194.07,194.02,13.41184853]
[1738959581899,0.03,194.07,194.02,13.41184853]
[1738959582098,0.03,194.07,194.02,39.02592629]
[1738959582399,0.03,194.07,194.02,13.41184853]
[1738959582697,0.03,194.07,194.01,61.61927776]
[1738959582698,25.61407776,194.04,194.01,30.0]
[1738959582877,25.61407776,194.04,194.0,13.41184853]
[1738959583076,25.61407776,194.02,193.97,30.0]
[1738959583295,25.61407776,194.02,193.98,13.41184853]
[1738959583501,25.61407776,194.01,193.95,30.0]
[1738959584294,30.76827776,194.02,193.98,30.0]
[1738959584790,25.61407776,194.05,194.0,30.0]
[1738959585393,25.14407776,194.05,194.0,30.0]
[1738959585704,30.29737776,194.05,194.0,30.0]
[1738959585900,25.61407776,194.04,194.0,30.0]
[1738959586289,25.61407776,194.03,193.98,30.0]
[1738959586481,25.61407776,194.03,193.99,30.0]
[1738959587175,25.61407776,194.0,193.95,30.0]
[1738959587381,25.61407776,193.99,193.95,30.0]
[1738959587689,25.61407776,193.99,193.96,30.0]
[1738959587884,25.61407776,193.98,193.94,30.0]
[1738959588104,25.61407776,193.97,193.92,30.0]
[1738959588302,25.61407776,193.98,193.94,30.0]
[1738959588602,30.76897776,193.99,193.94,30.0]
[1738959588897,25.61407776,193.98,193.93,13.41184853]
[1738959589100,25.61407776,193.98,193.94,30.0]
[1738959589302,25.61407776,193.98,193.93,13.41184853]
[1738959589497,25.61407776,193.94,193.9,30.0]
[1738959589804,30.77077776,193.93,193.88,30.063]
[1738959589978,25.61407776,193.92,193.89,30.0]
[1738959590188,25.61407776,193.92,193.88,13.47484853]
[1738959590803,25.61407776,193.92,193.88,0.063]
[1738959590977,5.1567,193.93,193.88,0.063]
[1738959591186,25.61407776,193.9,193.88,0.063]
[1738959591786,25.61407776,193.91,193.88,0.063]
[1738959591991,30.77107776,193.91,193.88,0.063]
[1738959592589,30.77027776,193.94,193.89,30.0]
[1738959592793,25.61407776,193.93,193.88,0.063]
[1738959593313,25.61407776,193.93,193.88,13.47484853]
[1738959593496,30.77027776,193.94,193.88,13.47484853]
[1738959594003,25.61407776,193.95,193.88,13.47484853]
[1738959594300,5.1551,193.99,193.94,13.41184853]
[1738959594511,5.1551,193.99,193.94,39.02592629]
[1738959595595,5.1551,193.99,193.94,13.41184853]
[1738959595795,5.1551,193.99,193.91,30.0]
[1738959595796,25.61407776,193.97,193.91,30.0]
[1738959595996,25.61407776,193.96,193.91,30.0]
[1738959596310,25.61407776,193.96,193.92,13.41184853]
[1738959596608,25.61407776,193.98,193.92,13.41184853]
[1738959596904,5.1551,193.99,193.92,13.41184853]
[1738959596905,25.61407776,193.97,193.92,13.41184853]
[1738959597711,5.1557,193.96,193.92,13.41184853]
[1738959598622,5.1554,193.97,193.92,13.41184853]
[1738959599086,30.76947776,193.97,193.91,30.0]
[1738959599413,25.61407776,193.92,193.88,0.063]
[1738959599592,25.61407776,193.91,193.88,0.063]
[1738959599910,25.61407776,193.94,193.89,30.0]
[1738959600103,25.61407776,193.95,193.9,13.41184853]
[1738959600283,99.3439,193.97,193.88,0.063]